[Event "Nordic Chess-ch 2019"]
[Site "Sarpsborg"]
[Date "2019.06.22"]
[Round "2.30"]
[White "Kristiansen, Terje"]
[Black "Jashari, Driton"]
[Result "0-1"]
[ECO "A29"]
[WhiteElo "1330"]
[BlackElo "1755"]
[Annotator "NA"]
[PlyCount "52"]
[EventDate "2019.06.21"]
[EventType "swiss"]
[EventCountry "NOR"]
[SourceTitle "playchess.com"]
[Source "ChessBase"]
[SourceQuality "1"]
[TimeControl "40/5400+30:1800+30"]

1. c4 {[%emt 0:00:00]} e5 {[%emt 0:01:52]} 2. Nc3 {[%emt 0:00:14]} Nc6 {[%emt 0:00:07]} 3. Nf3 {[%emt 0:00:50]} Nf6 {[%emt 0:00:24]} 4. g3 {[%emt 0:01:02]} Bc5 {[%emt 0:01:40]} 5. Bg2 {[%emt 0:03:21]} h6 {[%emt 0:00:17]} 6. O-O {[%emt 0:02:27]} a6 {[%emt 0:00:46]} 7. a3 {[%emt 0:01:45]} d6 {[%emt 0:00:35]} 8. Re1 {[%emt 0:03:18]} O-O {[%emt 0:00:12]} 9. e4 {[%emt 0:06:01]} Bg4 {[%emt 0:02:44]} 10. d3 {[%emt 0:05:45]} Nd4 {[%emt 0:00:30]} 11. Re3 {[%emt 0:06:02]} c6 {[%emt 0:00:48]} 12. Ne2 {[%emt 0:02:20]} Nxf3+ {[%emt 0:07:10]} 13. Rxf3 {[%emt 0:00:47]} Qd7 {[%emt 0:00:56]} 14. Be3 {[%emt 0:00:59]} Bxf3 {[%emt 0:00:32]} 15. Bxf3 {[%emt 0:00:57]} Bxe3 {[%emt 0:00:21]} 16. fxe3 {[%emt 0:00:05]} b5 {[%emt 0:01:54]} 17. b3 {[%emt 0:01:17]} bxc4 {[%emt 0:00:33]} 18. bxc4 {[%emt 0:00:40]} Rab8 {[%emt 1:17:39]} 19. Nc3 {[%emt 1:01:40]} Rb7 {[%emt 0:00:00]} 20. h3 {[%emt 0:00:00]} Rfb8 {[%emt 0:00:00]} 21. Bg4 {[%emt 0:00:00]} Nxg4 {[%emt 0:00:00]} 22. hxg4 {[%emt 0:00:00]} Rb3 {[%emt 0:00:00]} 23. Qe1 {[%emt 0:00:00]} Qxg4 {[%emt 0:00:00]} 24. Rb1 {[%emt 0:00:00]} h5 {[%emt 0:00:00]} 25. Ne2 {[%emt 0:00:00]} Rxb1 {[%emt 0:00:00]} 26. Nc1 {[%emt 0:00:00]} R8b2 {[%emt 0:00:00]} 0-1

[Event "Nordic Chess-ch 2019"]
[Site "Sarpsborg"]
[Date "2019.06.22"]
[Round "2.31"]
[White "Holst, Conny"]
[Black "Skogheim, Ole Morten"]
[Result "1-0"]
[ECO "D34"]
[WhiteElo "2197"]
[BlackElo "1950"]
[Annotator "NA"]
[PlyCount "47"]
[EventDate "2019.06.21"]
[EventType "swiss"]
[EventCountry "NOR"]
[SourceTitle "playchess.com"]
[Source "ChessBase"]
[SourceQuality "1"]
[TimeControl "40/5400+30:1800+30"]

1. d4 {[%emt 0:00:00]} d5 {[%emt 0:00:00]} 2. c4 {[%emt 0:00:00]} e6 {[%emt 0:00:09]} 3. Nc3 {[%emt 0:00:19]} c5 {[%emt 0:00:24]} 4. cxd5 {[%emt 0:00:32]} exd5 {[%emt 0:00:10]} 5. Nf3 {[%emt 0:01:51]} Nc6 {[%emt 0:00:40]} 6. g3 {[%emt 0:02:50]} Nf6 {[%emt 0:02:31]} 7. Bg2 {[%emt 0:00:51]} cxd4 {[%emt 0:01:28]} 8. Nxd4 {[%emt 0:01:10]} Be7 {[%emt 0:00:20]} 9. O-O {[%emt 0:02:27]} O-O {[%emt 0:00:27]} 10. Bg5 {[%emt 0:04:15]} h6 {[%emt 0:00:30]} 11. Be3 {[%emt 0:02:23]} Re8 {[%emt 0:01:36]} 12. Rc1 {[%emt 0:04:14]} Bg4 {[%emt 0:10:46]} 13. h3 {[%emt 0:08:54]} Be6 {[%emt 0:02:49]} 14. Qa4 {[%emt 0:04:57]} Bd7 {[%emt 0:11:25]} 15. Rfd1 {[%emt 0:06:29]} Nb4 {[%emt 0:02:04]} 16. Qb3 {[%emt 0:01:32]} a5 {[%emt 0:25:37]} 17. a4 {[%emt 0:05:39]} Bc6 {[%emt 0:05:05]} 18. Ndb5 {[%emt 0:11:39]} Qd7 {[%emt 0:13:41]} 19. Bd4 {[%emt 0:04:43]} Rad8 {[%emt 0:03:39]} 20. e4 {[%emt 0:05:51]} Qe6 {[%emt 0:04:01]} 21. Nc7 {[%emt 0:03:03]} Qd7 {[%emt 0:02:25]} 22. Nxe8 {[%emt 0:00:47]} Rxe8 {[%emt 0:00:03]} 23. Bxf6 {[%emt 0:02:14]} Bxf6 {[%emt 0:00:25]} 24. exd5 {[%emt 0:00:26]} 1-0

[Event "Nordic Chess-ch 2019"]
[Site "Sarpsborg"]
[Date "2019.06.22"]
[Round "2.32"]
[White "Mirza, Raad"]
[Black "Ulrichsen, Jarl H"]
[Result "0-1"]
[ECO "B07"]
[WhiteElo "1991"]
[BlackElo "2180"]
[Annotator "ChessBase"]
[PlyCount "92"]
[EventDate "2019.06.21"]
[EventType "swiss"]
[EventCountry "NOR"]
[SourceTitle "playchess.com"]
[Source "ChessBase"]
[SourceQuality "1"]
[TimeControl "40/5400+30:1800+30"]

1. e4 {[%emt 0:00:00]} d6 {[%emt 0:00:35]} 2. d4 {[%emt 0:00:47]} Nf6 {[%emt 0:00:09]} 3. Bd3 {[%emt 0:00:25]} Nbd7 {[%emt 0:05:19]} 4. f4 {[%emt 0:02:54]} e5 {[%emt 0:02:23]} 5. c3 {[%emt 0:01:15]} c5 {[%emt 0:06:33]} 6. d5 {[%emt 0:03:47]} c4 {[%emt 0:06:41]} 7. Bc2 {[%emt 0:00:48]} exf4 {[%emt 0:03:21]} 8. Bxf4 {[%emt 0:00:33]} Qb6 {[%emt 0:01:46]} 9. Qc1 {[%emt 0:02:44]} Ng4 {[%emt 0:11:19]} 10. Nh3 {[%emt 0:00:39]} Be7 {[%emt 0:02:33]} 11. b3 {[%emt 0:09:25]} cxb3 {[%emt 0:03:45]} 12. axb3 {[%emt 0:00:41]} O-O {[%emt 0:02:43]} 13. Qd2 {[%emt 0:01:51]} Bf6 {[%emt 0:04:07]} 14. Nf2 {[%emt 0:01:06]} Nde5 {[%emt 0:17:47]} 15. h3 {[%emt 0:01:59]} Nxf2 {[%emt 0:01:07]} 16. Qxf2 {[%emt 0:00:29]} Qc7 {[%emt 0:04:35]} 17. O-O {[%emt 0:10:00]} b5 {[%emt 0:09:15]} 18. Be3 {[%emt 0:00:53]} a6 {[%emt 0:00:10]} 19. Bd4 {[%emt 0:01:21]} Bb7 {[%emt 0:01:26]} 20. Nd2 {[%emt 0:04:42]} Qe7 {[%emt 0:00:48]} 21. b4 {[%emt 0:08:13]} Rac8 {[%emt 0:00:45]} 22. Kh2 {[%emt 0:07:22]} Nd7 {[%emt 0:02:01]} 23. Nf3 {[%emt 0:10:43]} Rxc3 {[%emt 0:03:37]} 24. Bxc3 {[%emt 0:02:36]} Bxc3 {[%emt 0:00:07]} 25. Rab1 {[%emt 0:00:32]} Ne5 {[%emt 0:03:08]} 26. Nd4 {[%emt 0:06:15]} Ng4+ {[%emt 0:00:20]} 27. hxg4 {[%emt 0:00:14]} Qe5+ {[%emt 0:00:07]} 28. Qf4 {[%emt 0:02:08]} Qxf4+ {[%emt 0:00:49]} 29. Rxf4 {[%emt 0:00:15]} Bxd4 {[%emt 0:00:06]} 30. Rf3 {[%emt 0:01:19]} Bc8 {[%emt 0:02:17]} 31. Rd3 {[%emt 0:01:25]} Be5+ {[%emt 0:00:15]} 32. Kh3 {[%emt 0:00:02]} h5 {[%emt 0:02:23]} 33. Bd1 {[%emt 0:00:02]} hxg4+ {[%emt 0:00:51]} 34. Bxg4 {[%emt 0:00:05]} f5 {[%emt 0:00:17]} 35. exf5 {[%emt 0:02:22]} Rxf5 {[%emt 0:00:16]} 36. g3 {[%emt 0:14:25]} Rh5+ {[%emt 0:00:09]} 37. Kg2 {[%emt 0:00:01]} Bxg4 {[%emt 0:00:09]} 38. Ra3 {[%emt 0:00:57]} Bh3+ {[%emt 0:01:11]} 39. Kf2 {[%emt 0:02:15]} Rf5+ {[%emt 0:00:57]} 40. Kg1 {[%emt 0:00:30]} Bd4+ {[%emt 0:00:55]} 41. Kh2 {[%emt 0:30:08]} Rh5 {[%emt 0:30:51]} 42. g4 {[%emt 0:00:00]} Bxg4+ {[%emt 0:00:00]} 43. Kg2 {[%emt 0:00:00]} Bf5 {[%emt 0:00:00]} 44. Re1 {[%emt 0:00:00]} Be5 {[%emt 0:00:00]} 45. Rxa6 {[%emt 0:00:00]} Rh2+ {[%emt 0:00:00]} 46. Kg1 {[%emt 0:00:00]} Rb2 {[%emt 0:00:00]} 0-1

[Event "Nordic Chess-ch 2019"]
[Site "Sarpsborg"]
[Date "2019.06.22"]
[Round "2.33"]
[White "Eriksson, Kristian"]
[Black "Rukovci, Shemsi"]
[Result "1/2-1/2"]
[ECO "C42"]
[WhiteElo "2111"]
[BlackElo "1907"]
[Annotator "NA"]
[PlyCount "40"]
[EventDate "2019.06.21"]
[EventType "swiss"]
[EventCountry "NOR"]
[SourceTitle "playchess.com"]
[Source "ChessBase"]
[SourceQuality "1"]
[TimeControl "40/5400+30:1800+30"]

1. e4 {[%emt 0:00:00]} e5 {[%emt 0:00:37]} 2. Nf3 {[%emt 0:00:56]} Nf6 {[%emt 0:00:59]} 3. Nc3 {[%emt 0:02:51]} Bb4 {[%emt 0:01:50]} 4. d3 {[%emt 0:01:40]} d6 {[%emt 0:04:12]} 5. Be2 {[%emt 0:02:53]} h6 {[%emt 0:03:06]} 6. O-O {[%emt 0:04:20]} a6 {[%emt 0:05:44]} 7. a3 {[%emt 0:05:14]} Bc5 {[%emt 0:01:29]} 8. d4 {[%emt 0:05:02]} exd4 {[%emt 0:02:09]} 9. Nxd4 {[%emt 0:00:06]} O-O {[%emt 0:02:59]} 10. Kh1 {[%emt 0:21:38]} Re8 {[%emt 0:03:00]} 11. f3 {[%emt 0:02:25]} b5 {[%emt 0:05:21]} 12. Qd3 {[%emt 0:06:46]} Qe7 {[%emt 0:08:59]} 13. Nb3 {[%emt 0:13:51]} Bb6 {[%emt 0:07:59]} 14. Bf4 {[%emt 0:06:13]} Bb7 {[%emt 0:08:12]} 15. Nd4 {[%emt 0:04:21]} Bxd4 {[%emt 0:03:54]} 16. Qxd4 {[%emt 0:00:07]} Nc6 {[%emt 0:00:52]} 17. Qd2 {[%emt 0:01:51]} Ne5 {[%emt 0:01:18]} 18. Rad1 {[%emt 0:01:58]} Rad8 {[%emt 0:01:41]} 19. Rfe1 {[%emt 0:03:11]} Qe6 {[%emt 0:08:03]} 20. a4 {[%emt 0:05:10]} c6 {[%emt 0:01:29]} 1/2-1/2

[Event "Nordic Chess-ch 2019"]
[Site "Sarpsborg"]
[Date "2019.06.22"]
[Round "2.34"]
[White "Kirppo, Ronny"]
[Black "Dogani, Avduraim"]
[Result "0-1"]
[ECO "E02"]
[WhiteElo "1910"]
[BlackElo "2107"]
[Annotator "NA"]
[PlyCount "94"]
[EventDate "2019.06.21"]
[EventType "swiss"]
[EventCountry "NOR"]
[SourceTitle "playchess.com"]
[Source "ChessBase"]
[SourceQuality "1"]
[TimeControl "40/5400+30:1800+30"]

1. d4 {[%emt 0:00:00]} d5 {[%emt 0:00:00]} 2. c4 {[%emt 0:00:00]} e6 {[%emt 0:00:00]} 3. Nf3 {[%emt 0:00:08]} Nf6 {[%emt 0:00:00]} 4. g3 {[%emt 0:00:30]} Nbd7 {[%emt 0:00:28]} 5. Bg2 {[%emt 0:02:01]} dxc4 {[%emt 0:03:12]} 6. Qa4 {[%emt 0:02:45]} c5 {[%emt 0:04:54]} 7. dxc5 {[%emt 0:21:57]} Bxc5 {[%emt 0:02:49]} 8. O-O {[%emt 0:01:31]} a6 {[%emt 0:01:45]} 9. Nc3 {[%emt 0:05:44]} O-O {[%emt 0:01:58]} 10. Qxc4 {[%emt 0:09:20]} b5 {[%emt 0:00:39]} 11. Qh4 {[%emt 0:09:07]} Bb7 {[%emt 0:01:26]} 12. Bg5 {[%emt 0:02:01]} Qb6 {[%emt 1:18:49]} 13. Bxf6 {[%emt 0:02:04]} Nxf6 {[%emt 0:00:00]} 14. Ne5 {[%emt 0:00:05]} Bxg2 {[%emt 0:00:00]} 15. Kxg2 {[%emt 0:00:04]} Bd4 {[%emt 0:00:00]} 16. Nd3 {[%emt 0:03:33]} Bxc3 {[%emt 0:00:00]} 17. bxc3 {[%emt 0:00:02]} Qc6+ {[%emt 0:00:00]} 18. Kg1 {[%emt 0:01:40]} Qxc3 {[%emt 0:00:00]} 19. Rfd1 {[%emt 0:03:53]} Rfd8 {[%emt 0:00:00]} 20. Rac1 {[%emt 0:01:47]} Qa3 {[%emt 0:00:00]} 21. Rc2 {[%emt 0:01:05]} Rd5 {[%emt 0:00:00]} 22. Rdc1 {[%emt 0:00:17]} Rad8 {[%emt 0:00:00]} 23. Qf4 {[%emt 0:03:46]} h6 {[%emt 0:00:00]} 24. Qc7 {[%emt 0:08:12]} R5d7 {[%emt 0:00:00]} 25. Qe5 {[%emt 0:05:12]} Ne8 {[%emt 0:00:00]} 26. Kg2 {[%emt 0:03:29]} Rd5 {[%emt 0:00:00]} 27. Qf4 {[%emt 0:01:59]} Qe7 {[%emt 0:00:00]} 28. h3 {[%emt 0:03:40]} e5 {[%emt 0:00:00]} 29. Qe3 {[%emt 0:00:02]} Qb7 {[%emt 0:00:00]} 30. Kh2 {[%emt 0:00:39]} Qe7 {[%emt 0:00:00]} 31. Rc6 {[%emt 0:03:20]} a5 {[%emt 0:00:00]} 32. R6c2 {[%emt 0:00:21]} Qg5 {[%emt 0:00:00]} 33. f4 {[%emt 0:01:26]} exf4 {[%emt 0:00:00]} 34. gxf4 {[%emt 0:00:02]} Qh5 {[%emt 0:00:00]} 35. Rc8 {[%emt 0:01:36]} Nf6 {[%emt 0:00:00]} 36. Rxd8+ {[%emt 0:00:14]} Rxd8 {[%emt 0:00:00]} 37. Ne5 {[%emt 0:00:02]} Re8 {[%emt 0:00:00]} 38. Qd3 {[%emt 0:01:48]} Qh4 {[%emt 0:00:00]} 39. Rf1 {[%emt 0:00:56]} Nh5 {[%emt 0:00:00]} 40. Ng4 {[%emt 0:01:26]} f5 {[%emt 0:03:59]} 41. Qxb5 {[%emt 0:16:10]} Qg3+ {[%emt 0:01:08]} 42. Kh1 {[%emt 0:00:22]} Qxh3+ {[%emt 0:00:46]} 43. Nh2 {[%emt 0:00:11]} Ng3+ {[%emt 0:00:34]} 44. Kg1 {[%emt 0:00:21]} Rxe2 {[%emt 0:00:35]} 45. Qd5+ {[%emt 0:02:45]} Kh7 {[%emt 0:00:47]} 46. Rf2 {[%emt 0:01:00]} Rxf2 {[%emt 0:00:23]} 47. Kxf2 {[%emt 0:14:57]} Qxh2+ {[%emt 0:00:06]} 0-1

[Event "Nordic Chess-ch 2019"]
[Site "Sarpsborg"]
[Date "2019.06.22"]
[Round "2.35"]
[White "Andersen, Harry"]
[Black "Hauge, Tor Arne"]
[Result "0-1"]
[ECO "B06"]
[WhiteElo "1905"]
[BlackElo "2022"]
[Annotator "NA"]
[PlyCount "60"]
[EventDate "2019.06.21"]
[EventType "swiss"]
[EventCountry "NOR"]
[SourceTitle "playchess.com"]
[Source "ChessBase"]
[SourceQuality "1"]
[TimeControl "40/5400+30:1800+30"]

1. e4 {[%emt 0:00:00]} g6 {[%emt 0:00:00]} 2. d4 {[%emt 0:00:00]} Bg7 {[%emt 0:00:06]} 3. Bc4 {[%emt 0:00:59]} d6 {[%emt 0:01:47]} 4. Nf3 {[%emt 0:02:45]} Nf6 {[%emt 0:02:26]} 5. e5 {[%emt 0:01:57]} dxe5 {[%emt 0:01:08]} 6. Nxe5 {[%emt 0:01:23]} O-O {[%emt 0:01:13]} 7. O-O {[%emt 0:00:21]} Nd5 {[%emt 0:17:59]} 8. Qf3 {[%emt 0:09:22]} e6 {[%emt 0:03:45]} 9. c3 {[%emt 0:01:12]} c6 {[%emt 0:15:33]} 10. Qg3 {[%emt 0:11:36]} Nd7 {[%emt 0:03:21]} 11. Ng4 {[%emt 0:03:45]} f5 {[%emt 0:16:42]} 12. Bxd5 {[%emt 0:07:07]} exd5 {[%emt 0:04:06]} 13. Nh6+ {[%emt 0:03:50]} Kh8 {[%emt 0:02:58]} 14. Qd6 {[%emt 0:04:50]} Qh4 {[%emt 0:14:17]} 15. Qf4 {[%emt 0:10:01]} Qe7 {[%emt 0:07:20]} 16. Bd2 {[%emt 0:03:24]} Nf6 {[%emt 0:00:16]} 17. Re1 {[%emt 0:01:07]} Ne4 {[%emt 0:01:22]} 18. h4 {[%emt 0:01:56]} Be6 {[%emt 0:01:27]} 19. Re2 {[%emt 0:05:21]} Rae8 {[%emt 0:00:21]} 20. f3 {[%emt 0:00:48]} Nf6 {[%emt 0:00:38]} 21. Qh2 {[%emt 0:04:37]} Qd7 {[%emt 0:00:49]} 22. Na3 {[%emt 0:02:31]} Nh5 {[%emt 0:00:11]} 23. Rae1 {[%emt 0:01:54]} f4 {[%emt 0:00:56]} 24. Ng4 {[%emt 0:05:46]} Ng3 {[%emt 0:00:12]} 25. Re5 {[%emt 0:03:55]} Bxg4 {[%emt 0:00:41]} 26. fxg4 {[%emt 0:02:11]} Bxe5 {[%emt 0:00:22]} 27. dxe5 {[%emt 0:02:06]} Qxg4 {[%emt 0:00:04]} 28. Nc2 {[%emt 0:01:09]} Ne4 {[%emt 0:01:25]} 29. Bc1 {[%emt 0:00:50]} f3 {[%emt 0:00:21]} 30. Rf1 {[%emt 0:04:01]} f2+ {[%emt 0:00:09]} 0-1

[Event "Nordic Chess-ch 2019"]
[Site "Sarpsborg"]
[Date "2019.06.22"]
[Round "2.37"]
[White "Andersen, Odd"]
[Black "Stubrud, Jan Magne"]
[Result "1-0"]
[ECO "C01"]
[WhiteElo "1751"]
[BlackElo "1681"]
[Annotator "NA"]
[PlyCount "93"]
[EventDate "2019.06.21"]
[EventType "swiss"]
[EventCountry "NOR"]
[SourceTitle "playchess.com"]
[Source "ChessBase"]
[SourceQuality "1"]
[TimeControl "40/5400+30:1800+30"]

1. e4 {[%emt 0:00:00]} e6 {[%emt 0:00:00]} 2. d4 {[%emt 0:00:10]} d5 {[%emt 0:00:00]} 3. exd5 {[%emt 0:00:09]} exd5 {[%emt 0:00:00]} 4. Bd3 {[%emt 0:00:21]} Nf6 {[%emt 0:02:04]} 5. Bf4 {[%emt 0:00:59]} Nc6 {[%emt 0:01:10]} 6. c3 {[%emt 0:00:23]} Bd6 {[%emt 0:00:43]} 7. Bxd6 {[%emt 0:04:50]} Qxd6 {[%emt 0:00:43]} 8. Nf3 {[%emt 0:00:28]} O-O {[%emt 0:03:46]} 9. O-O {[%emt 0:00:11]} Re8 {[%emt 0:01:24]} 10. h3 {[%emt 0:01:01]} Bd7 {[%emt 0:10:26]} 11. Nbd2 {[%emt 0:02:08]} Qf4 {[%emt 0:05:13]} 12. Qc2 {[%emt 0:03:55]} Ne4 {[%emt 0:05:37]} 13. Rfe1 {[%emt 0:00:58]} f5 {[%emt 0:11:30]} 14. b4 {[%emt 0:04:55]} a6 {[%emt 0:03:19]} 15. a4 {[%emt 0:00:34]} Ne7 {[%emt 0:02:26]} 16. Re2 {[%emt 0:03:19]} Ng6 {[%emt 0:01:58]} 17. Rae1 {[%emt 0:00:51]} Qh6 {[%emt 0:02:25]} 18. b5 {[%emt 0:02:07]} Nf4 {[%emt 0:04:09]} 19. Ne5 {[%emt 0:08:24]} Nxe2+ {[%emt 0:05:17]} 20. Rxe2 {[%emt 0:00:42]} Nxd2 {[%emt 0:02:40]} 21. Rxd2 {[%emt 0:00:33]} Be6 {[%emt 0:01:56]} 22. Re2 {[%emt 0:00:15]} axb5 {[%emt 0:04:36]} 23. axb5 {[%emt 0:00:12]} Ra1+ {[%emt 0:01:09]} 24. Kh2 {[%emt 0:00:12]} Qf4+ {[%emt 0:00:32]} 25. g3 {[%emt 0:00:56]} Qc1 {[%emt 0:02:59]} 26. Qxc1 {[%emt 0:03:01]} Rxc1 {[%emt 0:00:29]} 27. Bc2 {[%emt 0:02:12]} Bd7 {[%emt 0:01:18]} 28. Bb3 {[%emt 0:01:02]} Be6 {[%emt 0:05:55]} 29. Re3 {[%emt 0:06:01]} g6 {[%emt 0:00:36]} 30. Nd3 {[%emt 0:02:49]} Kf8 {[%emt 0:06:34]} 31. Nxc1 {[%emt 0:00:10]} c6 {[%emt 0:01:10]} 32. Nd3 {[%emt 0:00:21]} cxb5 {[%emt 0:00:17]} 33. Nc5 {[%emt 0:00:21]} Bf7 {[%emt 0:02:26]} 34. Rxe8+ {[%emt 0:52:30]} Kxe8 {[%emt 0:00:26]} 35. Nxb7 {[%emt 0:00:00]} Kd7 {[%emt 0:00:23]} 36. Nc5+ {[%emt 0:00:00]} Kc6 {[%emt 0:00:12]} 37. Nd3 {[%emt 0:00:00]} Be8 {[%emt 0:01:12]} 38. Kg2 {[%emt 0:00:00]} g5 {[%emt 0:00:14]} 39. Kf3 {[%emt 0:00:00]} Kd6 {[%emt 0:00:23]} 40. h4 {[%emt 0:00:00]} Bh5+ {[%emt 0:01:50]} 41. Ke3 {[%emt 0:00:00]} h6 {[%emt 0:30:14]} 42. Ne1 {[%emt 0:00:00]} Ke6 {[%emt 0:01:14]} 43. Nf3 {[%emt 0:00:00]} g4 {[%emt 0:02:57]} 44. Ne1 {[%emt 0:00:00]} Bg6 {[%emt 0:00:36]} 45. Kf4 {[%emt 0:00:00]} Kd6 {[%emt 0:02:28]} 46. Ng2 {[%emt 0:00:00]} Bh7 {[%emt 0:00:00]} 47. Ne3 {[%emt 0:00:00]} 1-0

[Event "Nordic Chess-ch 2019"]
[Site "Sarpsborg"]
[Date "2019.06.22"]
[Round "2.38"]
[White "Bergquist, Rune"]
[Black "Lunde, Sigmund"]
[Result "1-0"]
[ECO "D35"]
[WhiteElo "1609"]
[BlackElo "1834"]
[Annotator "NA"]
[PlyCount "39"]
[EventDate "2019.06.21"]
[EventType "swiss"]
[EventCountry "NOR"]
[SourceTitle "playchess.com"]
[Source "ChessBase"]
[SourceQuality "1"]
[TimeControl "40/5400+30:1800+30"]

1. d4 {[%emt 0:00:00]} Nf6 {[%emt 0:00:07]} 2. c4 {[%emt 0:00:00]} e6 {[%emt 0:00:29]} 3. Nc3 {[%emt 0:00:00]} d5 {[%emt 0:02:22]} 4. cxd5 {[%emt 0:00:00]} exd5 {[%emt 0:00:17]} 5. Bg5 {[%emt 0:00:07]} c6 {[%emt 0:00:25]} 6. e3 {[%emt 0:00:27]} Be7 {[%emt 0:00:11]} 7. Bd3 {[%emt 0:00:37]} h6 {[%emt 0:00:47]} 8. Bh4 {[%emt 0:00:57]} Ne4 {[%emt 0:13:05]} 9. Bxe7 {[%emt 0:00:27]} Qxe7 {[%emt 0:07:23]} 10. Nge2 {[%emt 0:00:44]} f5 {[%emt 0:03:03]} 11. Nf4 {[%emt 0:08:40]} Qf7 {[%emt 0:05:47]} 12. Be2 {[%emt 0:10:51]} Nf6 {[%emt 0:02:59]} 13. Rc1 {[%emt 0:10:15]} O-O {[%emt 0:00:54]} 14. b4 {[%emt 0:09:27]} g5 {[%emt 0:18:15]} 15. Nd3 {[%emt 0:03:10]} Nbd7 {[%emt 0:02:57]} 16. b5 {[%emt 0:02:17]} Ne4 {[%emt 0:04:03]} 17. bxc6 {[%emt 0:01:43]} bxc6 {[%emt 0:00:18]} 18. Nb4 {[%emt 0:03:50]} f4 {[%emt 0:05:02]} 19. Nxe4 {[%emt 0:02:15]} dxe4 {[%emt 0:00:23]} 20. Bc4 {[%emt 0:44:13]} 1-0

[Event "Nordic Chess-ch 2019"]
[Site "Sarpsborg"]
[Date "2019.06.22"]
[Round "2.39"]
[White "Andersen, Dag"]
[Black "Heikkila, Raine"]
[Result "1-0"]
[ECO "D35"]
[WhiteElo "1817"]
[BlackElo "1663"]
[Annotator "NA"]
[PlyCount "87"]
[EventDate "2019.06.21"]
[EventType "swiss"]
[EventCountry "NOR"]
[SourceTitle "playchess.com"]
[Source "ChessBase"]
[SourceQuality "1"]
[TimeControl "40/5400+30:1800+30"]

1. d4 {[%emt 0:02:01]} d5 {[%emt 0:00:00]} 2. c4 {[%emt 0:00:27]} e6 {[%emt 0:00:00]} 3. Nc3 {[%emt 0:00:09]} Nf6 {[%emt 0:00:15]} 4. cxd5 {[%emt 0:00:43]} exd5 {[%emt 0:00:15]} 5. Bg5 {[%emt 0:00:13]} Be7 {[%emt 0:00:22]} 6. e3 {[%emt 0:00:11]} c6 {[%emt 0:00:48]} 7. Bd3 {[%emt 0:00:09]} h6 {[%emt 0:00:12]} 8. Bh4 {[%emt 0:00:09]} Bg4 {[%emt 0:00:53]} 9. Qc2 {[%emt 0:01:16]} O-O {[%emt 0:00:35]} 10. f3 {[%emt 0:01:37]} Be6 {[%emt 0:00:55]} 11. Nge2 {[%emt 0:00:44]} a5 {[%emt 0:01:01]} 12. O-O {[%emt 0:04:39]} Na6 {[%emt 0:00:13]} 13. a3 {[%emt 0:00:57]} Nc7 {[%emt 0:00:15]} 14. Rae1 {[%emt 0:02:06]} Re8 {[%emt 0:01:49]} 15. Kh1 {[%emt 0:02:27]} Nh5 {[%emt 0:00:52]} 16. Bxe7 {[%emt 0:02:14]} Qxe7 {[%emt 0:00:26]} 17. e4 {[%emt 0:01:23]} Nf6 {[%emt 0:01:16]} 18. e5 {[%emt 0:00:30]} Nd7 {[%emt 0:01:16]} 19. f4 {[%emt 0:00:51]} Nf8 {[%emt 0:00:11]} 20. f5 {[%emt 0:03:03]} Bd7 {[%emt 0:00:55]} 21. Ng3 {[%emt 0:01:24]} f6 {[%emt 0:00:46]} 22. e6 {[%emt 0:07:02]} Bc8 {[%emt 0:00:20]} 23. Nce2 {[%emt 0:00:46]} Qd6 {[%emt 0:03:15]} 24. Nf4 {[%emt 0:01:41]} b6 {[%emt 0:02:56]} 25. Qe2 {[%emt 0:01:18]} Ba6 {[%emt 0:02:04]} 26. Bxa6 {[%emt 0:00:26]} Nxa6 {[%emt 0:00:10]} 27. Qg4 {[%emt 0:00:29]} Ra7 {[%emt 0:06:00]} 28. Ngh5 {[%emt 0:00:28]} Qe7 {[%emt 0:01:05]} 29. Re3 {[%emt 0:03:09]} Nc7 {[%emt 0:07:58]} 30. Rg3 {[%emt 0:01:43]} Nb5 {[%emt 0:09:30]} 31. Nxg7 {[%emt 0:10:54]} Qxg7 {[%emt 0:02:04]} 32. Qh5 {[%emt 0:01:34]} Qxg3 {[%emt 0:01:00]} 33. hxg3 {[%emt 0:00:14]} Ree7 {[%emt 0:00:23]} 34. Ng6 {[%emt 0:01:46]} Rg7 {[%emt 0:01:44]} 35. e7 {[%emt 0:01:38]} Raxe7 {[%emt 0:00:24]} 36. Nxe7+ {[%emt 0:00:08]} Rxe7 {[%emt 0:00:02]} 37. Rf4 {[%emt 0:01:46]} Nd6 {[%emt 0:00:25]} 38. Rg4+ {[%emt 0:04:46]} Kh7 {[%emt 0:00:18]} 39. Rh4 {[%emt 0:03:31]} Nf7 {[%emt 0:00:20]} 40. Qd1 {[%emt 0:02:24]} Ng5 {[%emt 0:00:22]} 41. Qc2 {[%emt 0:33:55]} Ne4 {[%emt 0:30:43]} 42. Qxc6 {[%emt 0:03:51]} Nxg3+ {[%emt 0:00:53]} 43. Kh2 {[%emt 0:01:02]} Nf1+ {[%emt 0:01:53]} 44. Kg1 {[%emt 0:30:16]} 1-0